bitfinex/quotes_SOLUSD_20240621
["timestamp","ask_amount","ask_price","bid_price","bid_amount"]
[1718948184969,16.1644,133.13,133.08,20.0]
[1718948185292,16.1644,133.13,133.07,9.51]
[1718948185583,16.1644,133.13,133.08,20.0]
[1718948186482,9.51,133.12,133.08,20.0]
[1718948186962,25.7154,133.1,133.05,9.51]
[1718948187163,25.7154,133.1,133.06,20.0]
[1718948187882,9.51,133.09,133.05,20.0]
[1718948188477,25.7154,133.1,133.05,20.0]
[1718948189986,16.2054,133.1,133.05,29.51]
[1718948191565,25.7154,133.1,133.05,20.0]
[1718948193893,16.2054,133.1,133.05,20.0]
[1718948194097,16.2054,133.1,133.08,9.51]
[1718948194795,16.2054,133.1,133.07,9.51]
[1718948194981,16.2054,133.1,133.08,20.0]
[1718948197499,16.2054,133.1,133.06,20.0]
[1718948197675,16.2054,133.1,133.05,9.51]
[1718948197877,16.2054,133.1,133.06,20.0]
[1718948202996,16.2054,133.1,133.05,9.51]
[1718948203208,16.2054,133.1,133.06,20.0]
[1718948203499,25.7154,133.1,133.06,20.0]
[1718948205491,16.2054,133.1,133.08,9.51]
[1718948205697,6.6544,133.13,133.08,9.51]
[1718948205698,31.9746,133.13,133.08,9.51]
[1718948206482,31.9746,133.13,133.07,9.68]
[1718948206686,9.51,133.12,133.08,20.0]
[1718948208693,22.4646,133.13,133.08,20.0]
[1718948208694,31.9746,133.13,133.08,20.0]
[1718948213897,31.9746,133.13,133.04,0.34]
[1718948214206,31.9746,133.13,133.07,9.51]
[1718948214512,31.9746,133.13,133.08,20.51]
[1718948217599,9.51,133.11,133.08,20.0]
[1718948217800,9.51,133.1,133.05,9.51]
[1718948218115,9.51,133.1,133.06,20.0]
[1718948219792,9.51,133.1,133.05,9.51]
[1718948219996,9.51,133.09,133.03,20.0]
[1718948220190,24.5811,133.07,133.03,20.0]
[1718948222695,24.5811,133.07,133.02,9.51]
[1718948222896,24.5811,133.07,133.03,20.0]
[1718948223111,15.7006,133.11,133.05,9.51]
[1718948223322,9.51,133.1,133.06,20.0]
[1718948223825,15.7006,133.11,133.06,20.0]
[1718948224002,15.7006,133.11,133.07,9.51]
[1718948224204,15.7006,133.11,133.08,20.0]
[1718948224719,25.2106,133.11,133.08,20.0]
[1718948224919,25.2106,133.11,133.07,20.0]
[1718948225302,25.2106,133.11,133.06,9.51]
[1718948225504,15.7006,133.11,133.07,20.0]
[1718948225705,15.7006,133.11,133.07,29.51]
[1718948226511,15.7006,133.11,133.08,9.51]
[1718948226711,15.7006,133.11,133.09,20.0]
[1718948227499,15.7006,133.11,133.08,20.0]
[1718948232223,15.7836,133.1,133.0,45.2]
[1718948232530,9.51,133.09,133.03,9.51]
[1718948232824,9.51,133.09,133.04,20.0]
[1718948233137,6.2736,133.1,133.04,20.0]
[1718948233138,15.435,133.06,133.04,20.0]
[1718948233428,15.435,133.06,133.02,20.0]
[1718948233723,15.435,133.06,133.02,29.51]
[1718948235214,15.435,133.06,133.02,20.0]
[1718948235723,15.435,133.06,133.02,29.51]
[1718948235923,15.435,133.06,133.03,10.02]
[1718948236226,15.435,133.06,133.04,20.0]
[1718948237330,15.435,133.06,132.96,60.9006]
[1718948237538,9.51,133.03,132.97,20.0]
[1718948237824,9.51,133.02,132.96,9.51]
[1718948238010,9.51,133.02,132.97,9.51]
[1718948238211,9.51,133.04,132.98,20.0]
[1718948238424,9.51,133.02,132.97,9.51]
[1718948238729,9.51,133.02,132.98,20.0]
[1718948239227,9.51,133.02,132.93,38.04]
[1718948239419,15.6437,133.01,132.92,78.6338]
[1718948239617,15.6437,133.01,132.92,63.1988]
[1718948239819,15.6437,133.01,132.96,9.51]
[1718948240424,15.6437,133.01,132.97,20.0]
[1718948241030,15.6437,133.01,132.94,20.0]
[1718948241231,15.6437,133.01,132.95,0.51]
[1718948242024,25.1537,133.01,132.96,9.51]
[1718948242225,25.1537,133.01,132.97,20.0]
[1718948242912,15.6437,133.01,132.97,20.0]
[1718948243108,15.6437,133.01,132.97,29.51]
[1718948244140,15.6437,133.01,132.97,20.0]
[1718948244319,15.6437,133.01,132.97,9.51]
[1718948244519,15.6437,133.01,132.98,20.0]
[1718948245421,15.6437,133.01,132.97,20.0]
[1718948245627,15.6437,133.01,132.95,0.51]
[1718948245925,15.6437,133.01,132.96,9.51]
[1718948246321,15.6437,133.01,132.97,20.0]
[1718948246836,15.6437,133.01,132.96,9.51]
[1718948247038,6.5166,133.0,132.93,20.0]
[1718948247215,9.51,132.99,132.94,9.51]
[1718948247412,9.51,132.99,132.95,20.0]
[1718948247923,9.51,132.98,132.94,20.0]
[1718948248329,9.51,132.98,132.93,20.0]
[1718948248640,9.51,132.97,132.88,20.0]
[1718948248834,9.51,132.97,132.92,9.51]
[1718948249034,9.51,132.98,132.93,29.51]
[1718948249251,16.3953,132.99,132.93,9.51]
[1718948249417,16.3953,132.99,132.94,29.51]
[1718948249918,16.3953,132.99,132.95,9.51]
[1718948250518,25.9053,132.99,132.94,20.0]
[1718948250734,25.9053,132.99,132.93,9.51]
[1718948251021,25.9053,132.99,132.94,20.0]
[1718948252645,9.51,132.98,132.94,20.0]
[1718948254348,25.9053,132.99,132.94,20.0]
[1718948254749,16.3953,132.99,132.94,20.0]
[1718948255047,16.3953,132.99,132.95,10.02]
[1718948255221,16.3953,132.99,132.96,20.0]
[1718948257427,16.3953,132.99,132.95,9.51]
[1718948257742,16.3953,132.99,132.96,20.0]
[1718948261651,22.1497,133.03,132.98,9.51]
[1718948261842,22.1497,133.03,132.99,20.0]
[1718948262330,22.1497,133.03,132.98,9.51]
[1718948262532,22.1497,133.03,132.99,20.0]
[1718948263840,31.6597,133.03,132.99,20.0]
[1718948264051,31.6597,133.03,132.97,10.02]
[1718948264349,31.6597,133.03,132.98,20.0]
[1718948272258,22.1497,133.03,132.98,20.0]
[1718948272435,22.1497,133.03,133.0,9.51]
[1718948274573,22.1497,133.03,132.99,9.51]
[1718948274775,22.1497,133.03,133.0,20.0]
[1718948275340,15.3046,133.06,133.0,31.0487417]
[1718948275566,24.8146,133.06,133.0,31.0487417]
[1718948280475,15.3046,133.06,133.0,31.0487417]
[1718948280672,24.8146,133.06,133.01,1.53862601]
[1718948280875,24.8146,133.06,133.0,29.51]
[1718948281655,24.8146,133.06,133.0,20.0]
[1718948281856,24.8146,133.06,132.99,0.51]
[1718948282057,9.51,133.05,132.99,10.02]
[1718948282473,9.51,133.05,133.0,20.0]
[1718948284275,24.8146,133.06,133.0,29.51]
[1718948287470,24.8146,133.06,133.0,20.0]
[1718948287647,9.51,133.05,132.99,10.02]
[1718948287851,9.51,133.05,133.0,20.0]
[1718948288273,6.4265,133.04,132.93,60.5046]
[1718948288573,6.4265,133.04,132.96,9.51]
[1718948288574,9.51,133.01,132.96,9.51]
[1718948288746,9.51,133.01,132.97,20.0]
[1718948288950,9.51,133.02,132.96,9.51]
[1718948289156,16.1277,133.03,132.97,9.51]
[1718948289363,16.1277,133.03,132.98,9.51]
[1718948289870,16.1277,133.03,132.93,83.24]
[1718948290073,25.6377,133.03,132.98,9.51]
[1718948290867,16.1277,133.03,132.98,9.51]
[1718948291087,16.1277,133.03,133.01,9.51]
[1718948291251,16.6243,133.06,133.0,1.50343484]
[1718948291452,16.6243,133.06,133.01,9.51]
[1718948294161,16.6243,133.06,133.02,2.67802453]
[1718948294362,16.6243,133.06,133.02,32.18802453]
[1718948294570,16.6243,133.06,133.02,12.18802453]
[1718948294966,16.6243,133.06,133.02,9.51]
[1718948295277,16.6243,133.06,133.01,9.51]
[1718948295454,16.6243,133.06,133.02,20.0]
[1718948296361,6.1266,133.08,133.04,9.51]
[1718948296772,6.1266,133.08,133.05,20.0]
[1718948300058,15.6366,133.08,133.05,20.0]
[1718948300385,15.6366,133.08,133.04,20.0]
[1718948301658,9.51,133.07,132.99,0.17]
[1718948301875,9.51,133.07,132.98,20.17]
[1718948302078,9.51,133.07,133.01,9.51]
[1718948302285,9.51,133.07,133.02,20.0]
[1718948303562,9.51,133.07,133.02,29.51]
[1718948305766,15.6366,133.08,133.02,29.51]
[1718948305971,15.6366,133.08,133.03,9.51]
[1718948306168,6.1266,133.08,133.03,9.51]
[1718948309269,15.6366,133.08,133.03,9.51]
[1718948309459,15.6366,133.08,133.02,29.51]
[1718948309665,9.51,133.07,133.02,29.51]
[1718948310586,9.51,133.07,133.02,20.0]
[1718948312164,9.51,133.07,133.02,29.51]
[1718948312584,6.1266,133.08,133.04,9.51]
[1718948315381,15.7869,133.09,133.07,9.51]
[1718948315566,22.2451,133.12,133.08,9.51]
[1718948315772,22.2451,133.12,133.09,9.51]
[1718948315973,22.2451,133.12,133.05,20.0]
[1718948315974,22.2451,133.12,133.08,9.51]
[1718948316171,22.2451,133.12,133.09,20.0]
[1718948317678,22.2451,133.12,133.09,29.51]
[1718948318591,22.2451,133.12,133.09,20.0]
[1718948319593,22.2451,133.12,133.03,0.51]
[1718948319885,31.7551,133.12,133.06,9.51]
[1718948320086,31.7551,133.12,133.07,20.0]
[1718948320572,22.2451,133.12,133.07,20.0]
[1718948320776,31.7551,133.12,133.07,20.0]
[1718948327400,31.7551,133.12,133.07,29.51]
[1718948335406,22.2451,133.12,133.07,29.51]
[1718948336597,22.2451,133.12,133.08,9.51]
[1718948341180,22.2451,133.12,133.07,20.0]
[1718948341385,22.2451,133.12,133.08,9.51]
[1718948343599,22.2451,133.12,133.09,9.51]
[1718948345307,31.7551,133.12,133.03,20.0]
[1718948345516,31.7551,133.12,133.06,9.51]
[1718948345686,31.7551,133.12,133.07,20.0]
[1718948346089,9.51,133.11,133.07,20.0]
[1718948348806,31.7551,133.12,133.07,20.0]
[1718948350207,22.2451,133.12,133.07,20.0]
[1718948350410,31.7551,133.12,133.07,9.51]
[1718948350613,31.7551,133.12,133.06,9.51]
[1718948350801,31.7551,133.12,133.07,20.0]
[1718948351995,31.7551,133.12,133.07,9.51]
[1718948352390,22.2451,133.12,133.07,9.51]
[1718948352697,22.2451,133.12,133.08,9.51]
[1718948354693,22.2451,133.12,133.07,9.51]
[1718948357298,22.2451,133.12,133.08,9.51]
[1718948357507,22.2451,133.12,133.09,9.51]
[1718948357806,13.89026288,133.15,133.11,9.51]
[1718948358014,6.0596,133.15,133.11,9.51]
[1718948358306,6.0596,133.15,133.12,9.51]
[1718948358489,15.1496,133.16,133.12,29.51]
[1718948359217,15.1496,133.16,133.13,9.51]
[1718948359600,15.1496,133.16,133.12,29.51]
[1718948363492,9.51,133.15,133.1,9.51]
[1718948363705,9.51,133.15,133.11,20.0]
[1718948365300,9.51,133.15,133.1,9.51]
[1718948365609,9.51,133.15,133.11,20.0]
[1718948365991,9.51,133.15,133.1,20.0]
[1718948367527,6.0462,133.14,133.08,9.51]
[1718948367729,9.51,133.13,133.07,9.51]
[1718948367898,9.51,133.13,133.08,20.0]
[1718948368634,9.51,133.13,133.01,58.7423569]
[1718948368635,9.51,133.09,133.01,1.3087569]
[1718948368824,9.51,133.08,133.03,9.51]
[1718948369500,15.3103,133.07,133.0,15.1496]
[1718948369702,24.8203,133.07,133.01,9.51]
[1718948369916,24.8203,133.07,133.02,9.51]
[1718948370511,15.3103,133.07,133.02,9.51]
[1718948371030,15.3103,133.07,132.96,58.43985342]
[1718948371324,16.0554,133.06,133.0,9.51]
[1718948371625,16.0554,133.06,133.01,29.51]
[1718948371825,6.5454,133.06,133.01,9.51]
[1718948372126,6.5454,133.06,133.02,20.0]
[1718948372512,6.5454,133.06,133.02,29.51]
[1718948374212,6.5454,133.06,133.02,20.0]
[1718948378634,6.5454,133.06,133.01,9.51]
[1718948378831,6.5454,133.06,133.02,20.0]
[1718948380540,6.5454,133.06,133.02,29.51]
[1718948380923,6.5454,133.06,133.02,20.0]
[1718948381116,6.5454,133.06,133.02,9.51]
[1718948382723,6.5454,133.06,132.97,20.0]
[1718948382922,6.5454,133.06,132.98,0.51]
[1718948383123,6.5454,133.06,133.02,9.51]
[1718948383535,6.5454,133.06,132.98,0.51]
[1718948383722,6.5454,133.06,133.02,9.51]
[1718948384121,6.5454,133.06,133.03,9.51]
[1718948384535,15.3103,133.07,133.04,9.51]
[1718948384844,15.3103,133.07,133.05,9.51]
[1718948385043,15.3103,133.07,133.0,38.04]
[1718948385044,6.1223,133.09,133.06,9.51]
[1718948385338,6.1223,133.09,133.05,9.51]
[1718948396555,16.0815,133.1,133.06,9.51]
[1718948397753,16.0815,133.1,133.05,9.51]
[1718948399659,25.5915,133.1,133.04,9.51]
[1718948399949,25.5915,133.1,133.05,20.0]
[1718948401357,9.51,133.09,133.05,20.0]
[1718948401534,9.51,133.09,133.04,20.0]
[1718948401736,25.5915,133.1,133.04,29.51]
[1718948402047,16.0815,133.1,133.04,29.51]
[1718948402351,25.5915,133.1,133.04,29.51]
[1718948402958,16.0815,133.1,133.05,9.51]
[1718948403537,16.0815,133.1,133.05,10.57035043]
[1718948403744,16.0815,133.1,133.06,9.51]
[1718948406353,14.22488494,133.12,133.08,9.51]
[1718948406553,14.22488494,133.12,133.08,10.57011139]
[1718948406744,6.388,133.12,133.08,9.51]
[1718948408331,6.388,133.12,133.05,1.23011139]
[1718948408549,15.898,133.12,133.06,9.51]
[1718948408746,15.898,133.12,133.07,20.0]
[1718948410033,6.388,133.12,133.07,29.51]
[1718948410250,15.898,133.12,133.07,29.51]
[1718948410553,6.388,133.12,133.08,9.51]
[1718948412563,6.388,133.12,133.07,20.0]
[1718948412748,6.388,133.12,133.08,9.51]
[1718948413454,6.388,133.12,133.07,9.51]
[1718948413642,6.388,133.12,133.08,20.0]
[1718948415079,15.898,133.12,133.08,20.0]
[1718948415361,15.898,133.12,133.06,9.51]
[1718948415568,15.898,133.12,133.07,20.0]
[1718948416969,6.388,133.12,133.08,9.51]
[1718948417348,6.388,133.12,133.09,29.51]
[1718948417553,15.6655,133.13,133.07,20.0]
[1718948417554,15.6655,133.13,133.11,9.51]
[1718948421166,15.6655,133.13,133.1,9.51]
[1718948421367,15.6655,133.13,133.11,20.0]
[1718948422467,25.1755,133.13,133.03,11.9319]
[1718948422654,25.1755,133.13,133.07,9.51]
[1718948422851,25.1755,133.13,133.08,20.0]
[1718948423660,25.1755,133.13,133.07,9.51]
[1718948423848,25.1755,133.13,133.08,20.0]
[1718948424047,9.51,133.12,133.03,11.9319]
[1718948424253,6.6454,133.11,133.06,9.51]
[1718948424553,6.6454,133.11,133.07,20.0]
[1718948425464,6.6454,133.11,133.07,29.51]
[1718948425972,6.6454,133.11,133.08,9.51]
[1718948433664,15.6655,133.13,133.07,20.17]
[1718948433882,16.1619,133.16,133.12,9.51]
[1718948434191,16.1619,133.16,133.13,9.51]
[1718948438263,16.1619,133.16,133.09,1.50084876]
[1718948438264,6.4278,133.18,133.09,45.23]
[1718948438471,6.4278,133.18,133.14,9.51]
[1718948439882,15.2969,133.2,133.17,9.51]
[1718948440080,15.2969,133.2,133.18,9.51]
[1718948440596,15.2969,133.2,133.17,9.51]
[1718948441092,15.2969,133.2,133.18,20.0]
[1718948441594,24.8069,133.2,133.14,9.51]
[1718948441796,24.8069,133.2,133.15,20.0]
[1718948442460,15.2969,133.2,133.15,29.51]
[1718948442663,15.2969,133.2,133.16,9.51]
[1718948443588,15.2969,133.2,133.19,9.51]
[1718948443995,15.2969,133.2,133.18,9.51]
[1718948444366,15.2969,133.2,133.17,9.51]
[1718948445496,6.5637,133.22,133.16,0.34]
[1718948445802,6.5637,133.22,133.18,9.51]
[1718948446378,6.5637,133.22,133.16,0.34]
[1718948446584,15.3516,133.23,133.21,9.51]
[1718948446777,15.3516,133.23,133.2,9.51]
[1718948447300,15.3516,133.23,133.19,9.51]
[1718948447504,15.3516,133.23,133.2,20.0]
[1718948448790,15.3516,133.23,133.13,57.1619]
[1718948449102,15.3516,133.23,133.13,11.9319]
[1718948449103,24.8616,133.23,133.13,11.9319]
[1718948449322,9.51,133.22,133.16,9.51]
[1718948449602,9.51,133.22,133.17,20.0]
[1718948450815,9.51,133.22,133.17,29.51]
[1718948451605,24.8616,133.23,133.17,29.51]
[1718948451812,24.8616,133.23,133.18,9.51]
[1718948451980,15.3516,133.23,133.19,20.0]
[1718948452376,9.51,133.22,133.12,51.3717]
[1718948452583,9.51,133.22,133.17,9.51]
[1718948453885,24.8616,133.23,133.17,9.51]
[1718948454698,24.8616,133.23,133.18,9.51]
[1718948455801,24.8616,133.23,133.17,9.51]
[1718948458438,24.8616,133.23,133.18,9.51]
[1718948459005,15.3516,133.23,133.18,9.51]
[1718948459312,15.3516,133.23,133.2,9.51]
[1718948459709,15.3516,133.23,133.21,9.51]
[1718948460083,15.3516,133.23,133.2,9.51]
[1718948463320,0.8323195,133.24,133.22,9.51]
[1718948463500,0.8323195,133.24,133.23,9.51]
[1718948464512,0.8323195,133.24,133.22,9.51]
[1718948471526,0.8323195,133.24,133.23,9.51]
[1718948472306,0.8323195,133.24,133.21,0.17]
[1718948472512,0.8323195,133.24,133.23,9.51]
[1718948472907,0.8323195,133.24,133.23,9.68]
[1718948473114,0.8323195,133.24,133.23,9.85]
[1718948473927,0.8323195,133.24,133.23,9.51]
[1718948474130,0.8323195,133.24,133.19,0.17]
[1718948474301,0.7761697,133.29,133.23,86.87]
[1718948474501,0.7761697,133.29,133.28,19.02]
[1718948474702,0.7761697,133.29,133.28,39.53]
[1718948475328,0.7761697,133.29,133.28,39.19]
[1718948475622,0.7761697,133.29,133.28,39.53]
[1718948476326,0.7761697,133.29,133.28,30.02]
[1718948476701,0.7761697,133.29,133.28,20.51]
[1718948477127,0.7761697,133.29,133.28,30.02]
[1718948479109,0.7761697,133.29,133.28,39.53]
[1718948480342,0.7761697,133.29,133.28,30.02]
[1718948480705,0.7761697,133.29,133.28,84.76]
[1718948481034,0.8323195,133.37,133.28,125.2219]
[1718948481235,0.8323195,133.37,133.31,9.51]
[1718948481531,0.8323195,133.37,133.31,30.02]
[1718948485236,0.8323195,133.37,133.32,51.2858]
[1718948485434,0.8323195,133.37,133.36,9.51]
[1718948485635,0.8323195,133.37,133.36,29.51]
[1718948485813,0.8323195,133.37,133.36,20.0]
[1718948486331,0.8323195,133.37,133.3,20.0]
[1718948486536,0.8323195,133.37,133.35,9.51]
[1718948487241,0.8323195,133.37,133.34,9.51]
[1718948487534,0.8323195,133.37,133.33,9.51]
[1718948489730,0.8323195,133.37,133.34,9.51]
[1718948490219,0.8323195,133.37,133.33,9.51]
[1718948490441,0.8323195,133.37,133.34,20.0]
[1718948494539,0.8323195,133.37,133.34,29.51]
[1718948494834,0.8323195,133.37,133.34,20.0]
[1718948495014,0.8323195,133.37,133.34,29.51]
[1718948495437,31.1494,133.36,133.27,15.699]
[1718948495619,9.51,133.35,133.3,9.51]
[1718948496242,9.51,133.35,133.29,9.51]
[1718948496435,9.51,133.35,133.3,20.0]
[1718948497741,21.6394,133.36,133.32,9.51]
[1718948499143,21.6394,133.36,133.31,9.51]
[1718948500445,21.6394,133.36,133.3,0.34]
[1718948500639,21.6394,133.36,133.32,9.51]
[1718948500840,31.1494,133.36,133.25,65.23]
[1718948501037,31.1494,133.36,133.3,29.51]
[1718948501342,31.1494,133.36,133.31,20.0]
[1718948501547,21.6394,133.36,133.25,20.0]
[1718948501754,9.51,133.33,133.25,20.0]
[1718948502045,9.51,133.31,133.26,9.51]
[1718948502247,9.51,133.31,133.27,20.0]
[1718948502455,9.51,133.31,133.25,29.51]
[1718948502753,9.51,133.31,133.25,9.51]
[1718948502928,9.51,133.31,133.21,38.04]
[1718948503130,9.51,133.31,133.25,9.51]
[1718948503430,9.51,133.31,133.26,9.51]
[1718948504243,31.3419,133.32,133.26,9.51]
[1718948504642,31.3419,133.32,133.21,83.27]
[1718948504838,31.3419,133.32,133.26,9.51]
[1718948505553,21.8319,133.32,133.22,20.51]
[1718948505736,21.8319,133.32,133.22,65.74]
[1718948506154,21.8319,133.32,133.24,28.44]
[1718948506362,21.8319,133.32,133.25,20.51]
[1718948513345,21.8319,133.32,133.26,20.0]
[1718948513545,21.8319,133.32,133.25,0.34]
[1718948519748,21.8319,133.32,133.24,0.17]
[1718948519980,21.8319,133.32,133.23,0.51]
[1718948525575,9.48,133.31,133.25,9.48]
[1718948525777,9.48,133.31,133.26,20.0]
[1718948526078,21.8319,133.32,133.27,9.65]
[1718948526270,21.8319,133.32,133.28,20.0]
[1718948527582,31.3119,133.32,133.28,20.0]
[1718948527875,31.3119,133.32,133.27,29.48]
[1718948529653,21.8319,133.32,133.27,29.48]
[1718948529872,31.3119,133.32,133.27,29.48]
[1718948530081,31.3119,133.32,133.27,20.0]
[1718948531676,9.48,133.31,133.27,20.0]
[1718948531893,21.8319,133.32,133.23,20.0]
[1718948531894,9.48,133.3,133.23,20.0]
[1718948532182,25.2821,133.28,133.23,9.48]
[1718948532471,6.6089,133.27,133.24,20.0]
[1718948532883,6.6089,133.27,133.23,20.0]
[1718948533053,9.48,133.26,133.23,20.0]
[1718948533250,9.48,133.26,133.2,9.48]
[1718948533459,9.48,133.26,133.21,20.0]
[1718948533680,9.48,133.25,133.21,20.0]
[1718948533855,9.48,133.25,133.2,9.48]
[1718948535366,9.48,133.25,133.21,20.0]
[1718948535965,9.48,133.26,133.21,29.48]
[1718948536371,16.0889,133.27,133.21,29.48]
[1718948536572,16.0889,133.27,133.22,9.48]
[1718948536869,6.6089,133.27,133.23,20.0]
[1718948537051,16.0889,133.27,133.23,20.0]
[1718948537660,16.0889,133.27,133.22,20.0]
[1718948541082,9.48,133.26,133.22,20.0]
[1718948541794,9.48,133.26,133.21,20.0]
[1718948542485,9.48,133.25,133.21,20.0]
[1718948544674,6.6089,133.27,133.23,9.48]
[1718948544988,6.6089,133.27,133.24,20.0]
[1718948545992,16.0889,133.27,133.24,20.0]
[1718948546166,16.0889,133.27,133.23,20.0]
[1718948546489,16.0889,133.27,133.22,20.0]
[1718948547388,16.0889,133.27,133.22,29.48]
[1718948549495,16.0889,133.27,133.22,20.0]
[1718948549975,9.48,133.26,133.22,20.0]
[1718948550189,6.6089,133.27,133.2,9.82]
[1718948550190,9.48,133.25,133.21,20.0]
[1718948550888,9.48,133.24,133.19,9.48]
[1718948552393,9.48,133.24,133.2,20.0]
[1718948554497,15.9029,133.23,133.2,20.0]
[1718948554702,9.48,133.21,133.16,9.48]
[1718948554993,9.48,133.21,133.17,20.0]
[1718948555198,9.48,133.21,133.15,9.48]
[1718948555397,9.48,133.21,133.16,20.0]
[1718948555790,9.48,133.21,133.16,29.48]
[1718948556474,6.6228,133.22,133.17,9.65]
[1718948556680,6.6228,133.22,133.18,20.0]
[1718948557906,9.48,133.21,133.18,20.0]
[1718948558082,9.48,133.21,133.16,20.0]
[1718948559487,9.48,133.21,133.15,9.48]
[1718948559687,9.48,133.21,133.16,20.0]
[1718948560705,9.48,133.2,133.16,20.0]
[1718948560907,9.48,133.2,133.15,20.0]
[1718948561095,9.48,133.2,133.14,9.99]
[1718948561296,9.48,133.2,133.15,20.0]
[1718948561698,9.48,133.19,133.15,20.0]
[1718948562007,9.48,133.19,133.14,9.99]
[1718948562208,9.48,133.19,133.15,20.0]
[1718948563013,24.599,133.19,133.14,9.99]
[1718948563194,24.599,133.19,133.15,20.0]
[1718948563897,24.599,133.19,133.14,20.51]
[1718948564121,15.119,133.19,133.14,20.0]
[1718948564408,9.48,133.16,133.1,20.0]
[1718948564711,9.48,133.15,133.1,20.0]
[1718948565190,9.48,133.15,133.1,29.48]
[1718948566312,15.3524,133.14,133.1,29.48]
[1718948566614,24.8324,133.14,133.1,20.0]
[1718948570408,15.3524,133.14,133.1,9.48]
[1718948570611,15.3524,133.14,133.06,87.85]
[1718948570612,15.3524,133.14,133.11,29.99]
[1718948571612,15.3524,133.14,133.11,20.0]
[1718948571795,15.3524,133.14,133.08,20.0]
[1718948571994,15.3524,133.14,133.09,0.51]
[1718948572219,15.9187,133.13,133.08,20.0]
[1718948572510,15.9187,133.13,133.03,60.69237912]
[1718948572511,15.9187,133.13,133.07,9.48]
[1718948572735,15.9187,133.13,133.08,20.0]
[1718948573919,6.4387,133.13,133.08,20.0]
[1718948574099,15.9187,133.13,133.08,20.0]
[1718948575822,6.4387,133.13,133.08,20.0]
[1718948576229,15.9187,133.13,133.08,29.48]
[1718948577121,6.4387,133.13,133.09,9.99]
[1718948577301,6.4387,133.13,133.1,20.0]
[1718948578616,15.3524,133.14,133.11,9.48]
[1718948578796,16.113,133.16,133.12,20.0]
[1718948579713,16.113,133.16,133.11,20.0]
[1718948580213,9.48,133.15,133.11,20.0]
[1718948580420,6.633,133.16,133.11,20.0]
[1718948580421,9.48,133.13,133.11,20.0]
[1718948580724,9.48,133.12,133.06,9.48]
[1718948580915,9.48,133.12,133.07,20.17]
[1718948581125,9.48,133.12,133.07,0.17]
[1718948581298,9.48,133.12,133.06,9.48]